Cogmind - Beta 16 @@@ ROGUE MODE // 2025.11.18 @ 23:39:43 // Winter2019/RPGLIKE Player: Rentaro Result: Destroyed by EX-DEC with AWS/EX-DEC Performance ------------- Evolutions (0) 0 Regions Visited (3) 600 Robots Destroyed (57) 285 Value Destroyed (1181) 1181 Prototype IDs (14) 280 Alien Tech Used (0) 0 Bonus (-73) -73 TOTAL SCORE: 2273 Bonus ------- High Alert Combat Kills 77 Friendly Fire -150 Cogmind --------- Core Integrity 0/600 Matter 229/300 Energy 124/125 System Corruption 1% Temperature Cool (22) Movement Flying (31) Location -10/Exiles Parts ------- > --- POWER (1) -------- Light Ion Engine > --- PROPULSION (4) --- Flight Unit Flight Unit Flight Unit Flight Unit > --- UTILITY (4) ------ Structural Scanner Signal Interpreter > --- WEAPON (4) ------- Heavy Assault Rifle Heavy Assault Rifle Heavy Assault Rifle Heavy Assault Rifle > --- INVENTORY (1) ---- Large Matter Pod (130) Peak State ------------ > --- POWER ------------ Light Ion Engine > --- PROPULSION ------- Flight Unit Flight Unit Flight Unit Flight Unit > --- UTILITY ---------- Heat Sink Structural Scanner Signal Interpreter > --- WEAPON ----------- Heavy Assault Rifle Heavy Assault Rifle Heavy Assault Rifle Heavy Assault Rifle > --- INVENTORY -------- Datajack [Rating: 16] Favorites ----------- Power Light Ion Engine Engine Light Ion Engine Propulsion Flight Unit Wheel Wheel Flight Unit Flight Unit Utility Structural Scanner Device Structural Scanner Processor Signal Interpreter Weapon Heavy Assault Rifle Energy Gun EM Pulse Gun Ballistic Gun Heavy Assault Rifle Special Melee Weapon Datajack Build | -11 -10 -10 -10 ------- Run | Yrd Mat Min Exi Slots Evolved 9 | 4 3 1 1 Power . | . . . . Propulsion 3 | 1 1 1 . Utility 3 | 1 1 . 1 Weapon 3 | 2 1 . . Parts Attached 20 | 6 13 1 . Power 1 | 1 . . . Engine 1 | 1 . . . Core . | . . . . Reactor . | . . . . Propulsion 6 | 2 3 1 . Treads . | . . . . Leg . | . . . . Wheel 2 | 2 . . . Hover . | . . . . Flight 4 | . 3 1 . Utility 3 | . 3 . . Device 2 | . 2 . . Storage . | . . . . Processor 1 | . 1 . . Hackware . | . . . . Protection . | . . . . Artifact . | . . . . Weapon 10 | 3 7 . . Energy Gun 1 | 1 . . . Energy Cannon . | . . . . Ballistic Gun 8 | 2 6 . . Ballistic Cannon . | . . . . Launcher . | . . . . Special Weapon . | . . . . Impact Weapon . | . . . . Slashing Weapon . | . . . . Piercing Weapon . | . . . . Special Melee Weapon 1 | . 1 . . Unidentified Prototypes . | . . . . Parts Lost . | . . . . Power . | . . . . Propulsion . | . . . . Utility . | . . . . Weapon . | . . . . Highest Loss Streak . | . . . . To Critical Strikes . | . . . . Average Backups . | . . 1 1 Power . | . . . . Propulsion . | . . . . Utility . | . . . . Weapon . | . . . . Tool/Special . | . . . . Unused Backups 2 | . 1 . 1 Power . | . . . . Propulsion . | . . . . Utility 1 | . . . 1 Weapon 1 | . 1 . . Tool/Special . | . . . . Average Slot Usage (%) 90 | . 84 100 99 Engine 9 | . 10 8 7 Wheel 3 | . 5 . . Flight 22 | . 16 32 32 Device 13 | . 11 16 15 Processor 6 | . 5 8 7 Energy Gun 1 | . 2 . . Ballistic Gun 30 | . 31 33 27 Special Melee Weapon 1 | . . . 5 Peak Build Rating 16 | 6 15 16 16 Average Rating 11 | 4 9 15 15 On Entrance 9 | . 6 15 16 Avg Prop Armor Cover (%) . | . . . . Naked Turns . | . . . . Heaviest Build 17 | 9 17 17 17 Greatest Support 26 | 25 25 26 26 Greatest Overweight (x) 1 | . 1 . . Average Overweight (x) . | . . . . Largest Inventory Capacity 1 | 1 1 1 1 Average Capacity 1 | 1 1 1 1 Most Carried 1 | . 1 1 1 Average Carried . | . . 1 . Final Capacity 1 | 1 1 1 1 Final Carried 1 | . 1 1 1 Class Distribution -------------------- 46% | Gunner 35% | Scavenger-Sprinter 17% | Mutant Dominant Class ---------------- Gunner | -10/Materials Scavenger-Sprinter | -10/Mines Scavenger-Sprinter | -10/Exiles Resources | -11 -10 -10 -10 ----------- Run | Yrd Mat Min Exi Matter Collected 2015 | 167 1517 310 21 Remotely . | . . . . Salvage Created 1534 | . 1335 199 . Parts 105 | . 91 14 . Haulers Intercepted 2 | . 2 . . Recyclers Shooed . | . . . . Parts Field Recycled . | . . . . Retrieved Matter . | . . . . Parts Self-Destructed . | . . . . Prevented . | . . . . Parts Restored . | . . . . Kills | -11 -10 -10 -10 ------- Run | Yrd Mat Min Exi Combat Hostiles Destroyed 37 | . 22 15 . Guns 37 | . 22 15 . Classes Destroyed 10 | . 9 1 . Worker 12 | . 12 . . Builder 3 | . 3 . . Tunneler 1 | . 1 . . Hauler 2 | . 2 . . Recycler 4 | . 3 1 . Operator 1 | . 1 . . Watcher 3 | . 3 . . Swarmer 12 | . 3 9 . Grunt 19 | . 19 . . Assembled 6 | . . 6 . Best Kill Streak 10 | . 7 10 . Combat Bots Only 5 | . 5 4 . Max Kills in Single Turn 2 | . 2 2 . Gunslinging 1 | . 1 1 . Exploded . | . . . . Melee . | . . . . Uniques/NPCs Destroyed . | . . . . Combat | -11 -10 -10 -10 -------- Run | Yrd Mat Min Exi Hostile Shots Fired 171 | . 115 24 32 Missed 57 | . 36 11 10 Hits 114 | . 79 13 22 Melee 2 | . . 2 . Projectile 112 | . 79 11 22 Critical Strikes 4 | . 1 . 3 Damage Taken 1742 | . 903 163 676 Core 1448 | . 738 128 582 Absorbed by Shields . | . . . . Redirected to Core 969 | . 509 121 339 Core Remaining (%) 100 | 100 . . . Volleys Fired 181 | . 151 24 6 Largest 4 | . 4 4 4 Hottest 92 | . 92 92 92 Shots Fired 582 | . 462 96 24 Gun 582 | . 462 96 24 Cannon . | . . . . Launcher . | . . . . Special . | . . . . Kinetic 552 | . 432 96 24 Thermal . | . . . . Explosive . | . . . . Electromagnetic 30 | . 30 . . Robot Hit Streak 13 | . 13 4 4 Robot Miss Streak 5 | . 5 5 2 Penetration Max . | . . . . Secondary Targets 6 | . 4 2 . Max Gunslinging Chain 1 | . 1 1 . Shots Hit Robots 223 | . 172 29 22 Core Hits 90 | . 69 18 3 Critical Kills 1 | . 1 . . Critical Parts Destroyed 1 | . 1 . . Critical Strikes 2 | . 2 . . Destroy 2 | . 2 . . Melee Attacks 9 | . . . 9 Impact . | . . . . Slashing . | . . . . Piercing . | . . . . Sneak Attacks 5 | . . . 5 Combat Hostiles . | . . . . Follow-up Attacks . | . . . . Damage Inflicted 3134 | . 2452 492 190 Guns 3106 | . 2424 492 190 Cannons . | . . . . Explosions 28 | . 28 . . Melee . | . . . . Ramming . | . . . . Kinetic 2822 | . 2140 492 190 Thermal 28 | . 28 . . Explosive . | . . . . Electromagnetic 284 | . 284 . . Impact . | . . . . Slashing . | . . . . Piercing . | . . . . Highest Corruption 1 | . . . 1 Average Corruption 1 | . . . 1 Corruption Purged . | . . . . Corruption Blocked . | . . . . Overload Shots . | . . . . Overflow Damage . | . . . . Projectiles . | . . . . Explosions . | . . . . Melee . | . . . . Knockbacks . | . . . . Impact . | . . . . Kinetic . | . . . . Secondary . | . . . . Self-Inflicted Damage 5 | . 5 . . Shots 1 | . 1 . . Rammed . | . . . . Targets Rammed . | . . . . Kicked . | . . . . Crushed . | . . . . Highest Temperature 153 | . 153 24 24 Average Temperature 33 | . 38 11 13 Received Heat Transfer 462 | . 462 . . Siege Activations . | . . . . Martial Activations . | . . . . Shielding Activations . | . . . . Robots Disrupted . | . . . . Combat Hostiles . | . . . . Robots Corrupted . | . . . . Combat Hostiles . | . . . . Parts Fried . | . . . . Impact Corruptions . | . . . . Robots Melted . | . . . . Combat Hostiles . | . . . . Parts Melted . | . . . . Heat Transferred 50 | . 50 . . Parts Sabotaged . | . . . . Parts Stolen . | . . . . Parts Stripped . | . . . . Power Chain Reactions 1 | . 1 . . Alert | -11 -10 -10 -10 ------- Run | Yrd Mat Min Exi Maximum Alert Level 3 | . 3 2 . Low Security (%) 18 | 100 21 . . Level 1 23 | . 25 16 . Level 2 57 | . 51 83 . Level 3 . | . . . . Level 4 . | . . . . Level 5 . | . . . . High Security . | . . . . Max Security . | . . . . Peak Influence 701 | . 701 495 . Initial 270 | . . 270 . Average 380 | . 380 422 . Influence Increases 1428 | . 1114 314 . Destroy 0b10 Robot/C 620 | . 440 180 . Destroy 0b10 Robot/NC 130 | . 125 5 . Destroy Leader 130 | . 100 30 . Successful Hack 16 | . 16 . . Select Force Hacks 60 | . 60 . . Disable Machine 375 | . 300 75 . Destroy Structure 22 | . 13 9 . Partial Spotted 15 | . . 15 . Lose Combat Pursuer 60 | . 60 . . Influence Decreases 1428 | . 420 584 424 Entered New Map 848 | . . 424 424 Time Decay 580 | . 420 160 . Squads Dispatched 5 | . 5 . . Investigation 4 | . 4 . . Extermination . | . . . . Reinforcement 1 | . 1 . . Assault . | . . . . Garrison . | . . . . Intercept . | . . . . Searches Triggered . | . . . . Construction Impeded . | . . . . Haulers Reinforced . | . . . . Active Scanning Responses . | . . . . Cargo Convoy Interrupts . | . . . . Stealth | -11 -10 -10 -10 --------- Run | Yrd Mat Min Exi Distress Signals . | . . . . Communications Jammed . | . . . . Distress Signals . | . . . . Times Spotted 71 | . 31 28 12 Peak Tracking Total 20 | . 5 20 16 Tactical Retreats 5 | . 2 2 1 Traps | -11 -10 -10 -10 ------- Run | Yrd Mat Min Exi Traps Triggered 1 | . 1 . . Indirectly . | . . . . Trap Hack Attempts 3 | . 3 . . Triggered . | . . . . Disarmed . | . . . . Reprogrammed 1 | . 1 . . Reused . | . . . . Traps Extracted . | . . . . Installed . | . . . . Triggered . | . . . . Machines | -11 -10 -10 -10 ---------- Run | Yrd Mat Min Exi Machines Disabled 27 | . 20 5 2 Max in Single Turn 1 | . 1 1 1 Machines Repaired . | . . . . Machines Dismantled . | . . . . Machines Sabotaged . | . . . . Overloaded Fab Kills . | . . . . Hacking | -11 -10 -10 -10 --------- Run | Yrd Mat Min Exi Machines Accessed 5 | . 5 . . Terminals 3 | . 3 . . Fabricators . | . . . . Repair Stations . | . . . . Recycling Units 2 | . 2 . . Scanalyzers . | . . . . Garrison Access . | . . . . Total Hacks 18 | . 18 . . Successful 9 | . 9 . . Failed 9 | . 9 . . Catastrophic . | . . . . Database Lockouts . | . . . . Manual 13 | . 12 . 1 Terminals 13 | . 13 . . Fabricators . | . . . . Repair Stations . | . . . . Recycling Units 5 | . 5 . . Scanalyzers . | . . . . Garrison Access . | . . . . Terminal Hacks 3 | . 3 . . Robot Analysis 1 | . 1 . . Recycling Unit Index 1 | . 1 . . Locate Traps 1 | . 1 . . Fabricator Hacks . | . . . . Repair Station Hacks . | . . . . Recycling Unit Hacks 1 | . 1 . . Retrieve Components 1 | . 1 . . Scanalyzer . | . . . . Garrison Access Hacks . | . . . . Unauthorized Hacks 5 | . 5 . . Terminals 3 | . 3 . . Botnet 2 | . 2 . . Operators 1 | . 1 . . Fabricators . | . . . . Repair Stations . | . . . . Recycling Units 2 | . 2 . . Tunnel 2 | . 2 . . Scanalyzers . | . . . . Garrison Access . | . . . . Data Cores Recovered . | . . . . Used . | . . . . Hacking Detections 4 | . 4 . . Full Trace Events 2 | . 2 . . Feedback Events . | . . . . Feedback Blocked . | . . . . Robot Schematics Acquired . | . . . . Robots Built . | . . . . Authchips . | . . . . Time . | . . . . Total Robot Build Rating . | . . . . Part Schematics Acquired . | . . . . Parts Built . | . . . . Authchips . | . . . . Time . | . . . . Total Part Build Rating . | . . . . Part Studies Acquired . | . . . . Parts Repaired . | . . . . Time . | . . . . Parts Recycled . | . . . . Recycled Matter . | . . . . Retrieved Matter . | . . . . Retrieved Components 4 | . 4 . . Parts Scanalyzed . | . . . . Part Schematics Acquired . | . . . . Parts Damaged . | . . . . Bothacking | -11 -10 -10 -10 ------------ Run | Yrd Mat Min Exi Used RIF Installer . | . . . . Robots Hacked 5 | . . . 5 Non-combat 3 | . . . 3 Combat 2 | . . . 2 Robot Hacks Applied 5 | . . . 5 parse_system 5 | . . . 5 Relay Couplers Released . | . . . . Fabnet Peak Effective % . | . . . . Robots Rewired . | . . . . Allies Hacked . | . . . . Hacks Repelled . | . . . . Allies | -11 -10 -10 -10 -------- Run | Yrd Mat Min Exi Total Allies 3 | . . 3 . Largest Group 3 | . . 3 . Highest-Rated Group 40 | . . 40 . Highest-Rated Ally 16 | . . 16 . Total Orders . | . . . . Ally Attacks 12 | . . 12 . Total Damage 102 | . . 102 . Kills 2 | . . 2 . Allies Corrupted . | . . . . Allies Melted . | . . . . Intel | -11 -10 -10 -10 ------- Run | Yrd Mat Min Exi Active Infowar (turns) 1597 | . 933 339 325 Structural 1597 | . 933 339 325 Robot Analysis Total 1 | . 1 . . Derelict Logs Recovered 1 | . . 1 . Drone Launches . | . . . . Drone Recoveries . | . . . . Exploration | -11 -10 -10 -10 ------------- Run | Yrd Mat Min Exi Turns Passed 1831 | 38 1129 339 325 Spaces Moved 2712 | 37 1183 646 846 Core 1 | 1 . . . Treads . | . . . . Legs . | . . . . Wheels 182 | 36 146 . . Hover . | . . . . Flight 2529 | . 1037 646 846 Fastest Speed 31 | 50 34 31 31 Average Speed 36 | 79 41 31 31 Slowest Speed 120 | 80 120 34 31 Overloaded Moves . | . . . . Propulsion Burnouts . | . . . . Robots Hopped 5 | . 1 3 1 Potential Cave-ins . | . . . . Cave-ins Triggered . | . . . . Exploration Rate (%) 71 | 4 96 99 88 Regions Visited 3 Branch Regions 2 Pre-discovered Areas 3 | . 2 1 . Known Exits Taken 2 | . 1 1 . Unknown Exits Taken 1 | 1 . . . Scrap Searched 1 | . . 1 . Spaces Dug . | . . . . Terrain Destroyed 16 | . 6 10 . Melee . | . . . . Projectile . | . . . . AOE 16 | . 6 10 . Terrain Rammed . | . . . . Walls Destroyed . | . . . . Machines Disabled . | . . . . Actions | -11 -10 -10 -10 --------- Run | Yrd Mat Min Exi Total 3126 | 42 1474 720 890 Wait 134 | . 66 42 26 Move 2699 | 36 1180 639 844 Hop 5 | . 1 3 1 Pick Up 10 | . 9 . 1 Fast Attach 10 | 6 3 1 . Attach 4 | . 4 . . Detach . | . . . . Swap 9 | . 7 . 2 Drop 11 | . 10 . 1 Fire 181 | . 151 24 6 Melee 9 | . . . 9 Ram . | . . . . Kick . | . . . . Crush . | . . . . Escape Stasis . | . . . . Rewire . | . . . . Trap 3 | . 3 . . Miscellaneous 51 | . 40 11 . Route ------- -11/Scrapyard -10/Materials (discovered 4 exits: *Mat x3 / *Min) -10/Mines (discovered 4 exits: *Mat x2 / *Exi / *Sub) -10/Exiles (discovered 2 exits: *Min x2) History --------- Turn | Location | Event 1 | -11/Scrapyard | Upgraded with Propulsion slot (x1) 1 | -11/Scrapyard | Upgraded with Utility slot (x1) 1 | -11/Scrapyard | Upgraded with Weapon slot (x2) 30 | -11/Scrapyard | Discovered new exit (range 12) 39 | -11/Scrapyard | Entered Materials 223 | -10/Materials | Discovered new exit (range 7) 336 | -10/Materials | Discovered new exit (range 16) 375 | -10/Materials | Reached level 2 457 | -10/Materials | Discovered new exit (range 13) 584 | -10/Materials | Build established: Mutant 609 | -10/Materials | Discovered new exit (range 6) 618 | -10/Materials | Upgraded with Weapon slot (x1) 628 | -10/Materials | Identified exit to Materials 722 | -10/Materials | Reached level 3 725 | -10/Materials | Upgraded with Propulsion slot (x1) 725 | -10/Materials | Upgraded with Utility slot (x1) 899 | -10/Materials | Identified exit to Mines 921 | -10/Materials | Build established: Gunner 1135 | -10/Materials | Reached level 4 1168 | -10/Materials | Entered Mines 1182 | -10/Mines | Upgraded with Propulsion slot (x1) 1197 | -10/Mines | Discovered exit to Materials (range 11) 1247 | -10/Mines | Deemed a non-threat by the Exiles lab entrance 1247 | -10/Mines | Discovered new exit (range 6) 1248 | -10/Mines | Identified exit to Exiles 1257 | -10/Mines | Assembled infested the area 1262 | -10/Mines | Assisted by a Guerilla fighting off Assembled 1278 | -10/Mines | Reached level 5 1302 | -10/Mines | Learned location of Zion (-6) 1305 | -10/Mines | Assisted by bots powering up and referring to "LRC-V3" 1351 | -10/Mines | Received a Rocket Launcher from a helpful Derelict 1377 | -10/Mines | Found a Scrap Suit stashed away for nefarious purposes 1451 | -10/Mines | Discovered new exit (range 14) 1455 | -10/Mines | Identified exit to Subcaves 1480 | -10/Mines | Discovered exit to Materials (range 16) 1488 | -10/Mines | Build established: Scavenger-Sprinter 1507 | -10/Mines | Entered Exiles 1512 | -10/Exiles | Discovered new exit (range 15) 1516 | -10/Exiles | Met 8R-AWN 1521 | -10/Exiles | Met EX-HEX 1557 | -10/Exiles | Met EX-DEC 1573 | -10/Exiles | Met EX-BIN 1606 | -10/Exiles | Discovered new exit (range 10) 1610 | -10/Exiles | Identified exit to Mines 1633 | -10/Exiles | Visited The Gauntlet 1803 | -10/Exiles | Upgraded with Utility slot (x1) 1805 | -10/Exiles | Attacked by the Exiles 1817 | -10/Exiles | Core integrity fell below 50% 1825 | -10/Exiles | Core integrity fell below 20% 1832 | -10/Exiles | Destroyed by EX-DEC with AWS/EX-DEC Last Messages --------------- 01710_ Connecting with EX-Vault Access... >>\\1234 Not this time, boltface! 01784_ Dropped Datajack. 01792_ Extracted 20 matter. 01792_ Acquired Lrg. Matter Pod. 01803_ Upgraded: Utility Slot (+1) 01803_ Upgraded: Ranged Accuracy (+5) 01804_ Machine disabled. 01805_ EXILES: Hostile robot within lab perimeter. Defensive protocols time, folks! 01807_ EX-DEC: "Let's see what this bad boy can do..." 01807_ EX-DEC deploys DAS Turret. 01807_ Knocked back. 01808_ Destroyed EX Chip 1. 01819_ EX-BIN: "I just want to science!" 01822_ Acquired 1 matter. 01824_ Knocked back. 01826_ Heat Sink blasted off. 01831_ Machine disabled. Map ----- +----------------------------------------------------+ | ?????????###"" | | ??????????### | | ??????????###" " "" | | ???????????##"""" ""## ##""" " " " | | ???????????##""% ""#### ######""" "" | | ???????????##" """"##### ########"""" | | ???????????##""" """##### ############ | | ???????????### ""##### "!##?###### | | ???????????###"" """######" !##??????? | | ????????????###""" ####?##" "##??????? | | ????????????####"""" ! ####??##!!""!"##??????? | | ?????????????##### ca ###???##########??????? | | ??????????????######## a %###????##########??????? | | ????????????????####### ###????????????????????? | | ????????????????????### ##?????????????????????? | | ?????????????????????## c##?????????????????????? | | ???????????######????## ##?????????????????????? | | ??????????#######????## ##?????????????????????? | | ???"""""??##"""""""#### ##?????????????????????? | | ?"""""""####"""""""#### ##?????????????????????? | | """""" "####" """"#### ##?????????????????????? | | #""" """####"" """#### ##?????????????????????? | | #"" ""####"" ""#### #########??????????????? | | ###"""########"""###### #########??????????????? | | """ """""""" """""" c """"""#"?""???????????? | | "" """"""" z @ "#"" ""??????????? | | z z " ""??????????? | | " " "??????????? | | " """??????????? | | "" #"" ""??????????? | | " " """"" " """" """""#"??????????????? | | ###"""###""###"""########"""#######??????????????? | | #"" ""#""#"" ""####"" ""#####??????????????? | | #""" ""#""#""" ""####"" """##?????????????????? | | #" """"""""#" " "####"""""""##?????????????????? | | #"""""""??"#"""""""####"" """"##?????????????????? | | ?""""""?????"""""""##??""""""????????????????????? | | ?????????????########??#####?????????????????????? | | ?????????????######????#####?????????????????????? | | ?????????????????????????????????????????????????? | | ?????????????????????????????????????????????????? | | ?????????????????????????????????????????????????? | | | | | | | | | | | | | | | | | +----------------------------------------------------+ Best States ------------- Heat Dissipation 35 Energy Generation 10 Energy Capacity 125 Matter Stores 300 Matter Capacity 300 Sight Range 16 Terrain Scan Density 10 Evasion (%) 63 Item Schematics ----------------- None Robot Schematics ------------------ None Fabricated ------------ Nothing Repaired ---------- Nothing Studied --------- None Alien Tech Used ----------------- None Achievements -------------- None Challenges ------------ None RPGLIKE | -11 -10 -10 -10 --------- Run | Yrd Mat Min Exi Levels Raised 4 | . 3 1 . XP Earned 9477 | 3000 4543 1795 139 XP Spent 8550 | 2650 3300 1100 1500 Upgrades 13 | 6 4 1 2 Propulsion Slot 3 | 1 1 1 . Utility Slot 3 | 1 1 . 1 Weapon Slot 3 | 2 1 . . Mass Support 2 | 1 1 . . Inventory Capacity 1 | 1 . . . Ranged Accuracy 1 | . . . 1 Protomatter Created 439 | . 359 80 . Integrity Restored 969 | . 843 126 . Core 841 | . 738 103 . Parts 128 | . 105 23 . Protomatter Decayed 105 | . 65 40 . Game ------ Seed AntimatterVariableBox Manual? 0 Play Time 00:34:37 Cumulative 195.4 hours Start 2025.11.18 @ 22:44:16 End 2025.11.18 @ 23:39:43 Sessions 1 Manual Loads 0 Difficulty Rogue Special Mode Winter2019/RPGLIKE Game No. 61 Rogue 61 Adventurer 0 Explorer 0 Win Type - Total 7 Types 2/1/1/3/0/0/0/0/0/0 Lore% 61 Gallery% 58 Achievement% 58 Wizard Run 0 Options --------- Layout 2 ASCII 0 Keyboard 0 Movement Mouse Keybinds 1 Fullscreen 2 Font 20/X11 Map View 64x51 Zoom Use 0% Tactical HUD 1 Map Filters NONE Filters NONE Steam 1 RUN: 0cacd82a-6458-44a9-80b8-8d4eeb05ebe0